bitfinex/quotes_BTCUSD_20240723
["timestamp","ask_amount","ask_price","bid_price","bid_amount"]
[1721719828982,2.26966482,66445.0,66444.0,0.30591436]
[1721719829183,2.28366482,66445.0,66444.0,0.30591436]
[1721719829383,2.28866482,66445.0,66444.0,0.30691436]
[1721719829780,2.50178473,66445.0,66444.0,0.30691436]
[1721719829979,2.65245193,66445.0,66444.0,0.30691436]
[1721719830426,2.55178473,66445.0,66444.0,0.30691436]
[1721719831645,2.50100541,66445.0,66444.0,0.30691436]
[1721719832934,2.50100541,66445.0,66444.0,0.15640936]
[1721719832935,2.66863425,66445.0,66444.0,0.15640936]
[1721719833117,2.8155969,66445.0,66444.0,0.15640936]
[1721719833747,2.8155969,66445.0,66444.0,0.15140936]
[1721719834390,2.96607762,66445.0,66444.0,0.15140936]
[1721719834793,2.95207762,66445.0,66444.0,0.15140936]
[1721719835107,2.96051424,66445.0,66444.0,0.15040936]
[1721719835451,2.82403354,66445.0,66444.0,0.15040936]
[1721719835872,2.09957908,66443.0,66442.0,0.01495736]
[1721719836107,2.91635992,66443.0,66442.0,0.01495736]
[1721719836518,2.91635992,66443.0,66422.0,0.0647]
[1721719836519,0.24635823,66434.0,66433.0,7.8e-07]
[1721719836724,2.05487113,66434.0,66433.0,7.8e-07]
[1721719836924,2.63233531,66434.0,66433.0,7.8e-07]
[1721719837349,1.81375723,66432.0,66431.0,7.8e-07]
[1721719837579,2.44293614,66432.0,66431.0,7.8e-07]
[1721719837725,2.8892264,66432.0,66431.0,7.8e-07]
[1721719837923,2.59507592,66432.0,66431.0,7.8e-07]
[1721719838614,2.81437592,66432.0,66431.0,7.8e-07]
[1721719839416,2.97556375,66432.0,66431.0,7.8e-07]
[1721719839621,2.92556375,66432.0,66431.0,7.8e-07]
[1721719839850,2.8783759,66432.0,66431.0,7.8e-07]
[1721719840055,3.0725264,66432.0,66431.0,7.8e-07]
[1721719840260,3.1225264,66432.0,66431.0,7.8e-07]
[1721719840468,3.1365264,66432.0,66431.0,7.8e-07]
[1721719840801,2.93438662,66432.0,66431.0,7.8e-07]
[1721719841006,3.13674511,66432.0,66431.0,7.8e-07]
[1721719841418,3.14587625,66432.0,66431.0,7.8e-07]
[1721719841840,3.14587625,66432.0,66415.0,0.00155114]
[1721719841841,0.04583323,66416.0,66415.0,0.00155114]
[1721719842055,0.95693732,66416.0,66415.0,0.00155114]
[1721719842259,1.86033332,66416.0,66415.0,0.00155114]
[1721719842432,2.26146532,66416.0,66415.0,0.00155114]
[1721719843074,1.96133332,66416.0,66415.0,0.00155114]
[1721719843317,2.41551588,66416.0,66415.0,0.00155114]
[1721719843530,2.57752062,66416.0,66415.0,0.00155114]
[1721719843747,2.26743121,66416.0,66415.0,0.00155114]
[1721719843952,2.51418499,66416.0,66415.0,0.00155114]
[1721719844617,2.45572486,66416.0,66415.0,0.00155114]
[1721719844991,2.27586219,66416.0,66415.0,1.4e-07]
[1721719845191,2.32030671,66416.0,66415.0,1.4e-07]
[1721719845433,2.27586219,66416.0,66415.0,1.4e-07]
[1721719845603,2.42286219,66416.0,66415.0,1.4e-07]
[1721719845835,2.56982484,66416.0,66415.0,1.4e-07]
[1721719846035,2.37186221,66416.0,66415.0,1.4e-07]
[1721719846682,2.39320236,66416.0,66415.0,1.4e-07]
[1721719846804,1.79934606,66412.0,66411.0,1.4e-07]
[1721719847023,1.79934606,66412.0,66400.0,0.12708039]
[1721719847024,0.54763321,66401.0,66400.0,0.00068939]
[1721719847224,2.3968466,66401.0,66400.0,0.00068939]
[1721719847422,2.7980466,66401.0,66400.0,0.00068939]
[1721719847741,2.5261278,66401.0,66400.0,0.00068939]
[1721719847949,1.92050584,66401.0,66400.0,0.00068939]
[1721719848149,1.58716559,66401.0,66400.0,0.00350154]
[1721719848365,1.60116559,66401.0,66400.0,0.00350154]
[1721719848923,1.29996559,66401.0,66400.0,0.00350154]
[1721719849097,1.01276559,66401.0,66400.0,0.14560154]
[1721719849304,0.96693236,66401.0,66400.0,0.14560154]
[1721719849529,1.26813236,66401.0,66400.0,0.14560154]
[1721719849719,0.93976653,66401.0,66400.0,0.14560154]
[1721719849902,0.2506,66401.0,66400.0,0.14560154]
[1721719850080,0.5658,66401.0,66400.0,0.14560154]
[1721719850435,0.301171,66408.0,66407.0,0.00281215]
[1721719850436,0.451755,66408.0,66407.0,0.00281215]
[1721719850566,0.852923,66408.0,66407.0,0.13931215]
[1721719850782,0.150584,66408.0,66407.0,0.13931215]
[1721719851093,0.00919741,66417.0,66407.0,0.13931215]
[1721719851094,0.150581,66409.0,66408.0,0.0526]
[1721719851294,0.30115,66412.0,66402.0,0.05]
[1721719851465,0.150578,66411.0,66408.0,0.14701991]
[1721719851669,0.51442597,66423.0,66409.0,0.14701991]
[1721719851821,0.07348942,66416.0,66409.0,0.14701991]
[1721719852197,0.150579,66410.0,66409.0,0.14701991]
[1721719852621,0.301147,66413.0,66409.0,0.14701991]
[1721719852847,0.163578,66411.0,66409.0,0.14701991]
[1721719853255,0.150579,66410.0,66409.0,0.14701991]
[1721719853819,0.151579,66410.0,66409.0,0.23321991]
[1721719854022,0.150579,66410.0,66409.0,0.22621991]
[1721719854187,0.150577,66411.0,66409.0,0.28741991]
[1721719854391,0.150577,66411.0,66410.0,0.0663]
[1721719854392,0.001,66411.0,66410.0,0.0663]
[1721719854613,0.001,66411.0,66410.0,0.21331991]
[1721719855026,0.001,66411.0,66410.0,0.82727767]
[1721719855230,0.001,66411.0,66410.0,1.20143667]
[1721719855515,0.004,66411.0,66410.0,1.20143667]
[1721719855703,0.004,66411.0,66410.0,1.17148468]
[1721719855864,0.004,66411.0,66410.0,1.47264368]
[1721719856084,0.001,66411.0,66410.0,1.17148468]
[1721719856265,0.001,66411.0,66410.0,1.23262028]
[1721719856468,0.301098,66424.0,66417.0,0.066]
[1721719856469,0.150553,66422.0,66417.0,0.066]
[1721719856673,0.150549,66424.0,66419.0,0.066]
[1721719857004,0.150546,66425.0,66422.0,0.066]
[1721719857203,0.150548,66424.0,66423.0,0.44811991]
[1721719857406,0.150538,66429.0,66424.0,0.0629]
[1721719857551,0.1,66428.0,66426.0,0.0629]
[1721719857752,0.301069,66430.0,66428.0,0.0641]
[1721719857954,0.250536,66429.0,66428.0,0.0641]
[1721719858157,0.551609,66429.0,66428.0,0.36518]
[1721719858355,0.551609,66429.0,66428.0,0.36846489]
[1721719858626,0.04583323,66441.0,66429.0,0.0644]
[1721719858808,0.07348942,66443.0,66431.0,0.0644]
[1721719858809,0.07348942,66436.0,66431.0,0.0644]
[1721719859144,0.150523,66435.0,66432.0,0.30106]
[1721719859349,0.150526,66434.0,66432.0,0.30106]
[1721719859656,0.301047,66435.0,66432.0,0.30106]
[1721719859773,0.30102,66441.0,66433.0,0.14701991]
[1721719859973,0.150517,66438.0,66434.0,0.44555]
[1721719860176,0.37450142,66443.0,66435.0,0.14701991]
[1721719860378,0.07348942,66443.0,66437.0,0.0642]
[1721719860581,0.07348942,66443.0,66438.0,0.44804991]
[1721719860870,0.07348942,66443.0,66440.0,0.081]
[1721719861048,0.150507,66442.0,66441.0,0.51313991]
[1721719861510,0.07348942,66443.0,66441.0,0.51313991]
[1721719861727,0.08648942,66443.0,66441.0,0.51313991]
[1721719861879,0.301014,66442.0,66441.0,0.51313991]
[1721719862085,0.07348942,66443.0,66441.0,0.51313991]
[1721719862297,0.150507,66442.0,66441.0,0.51313991]
[1721719862454,0.559521,66442.0,66441.0,0.51413991]
[1721719862854,0.90609291,66442.0,66441.0,0.36712]
[1721719863055,1.20710691,66442.0,66441.0,0.36712]
[1721719863309,1.63627454,66442.0,66441.0,0.30202]
[1721719863510,1.5941915,66442.0,66441.0,0.30202]
[1721719863719,1.50812091,66442.0,66441.0,0.30202]
[1721719863915,1.58619708,66442.0,66441.0,0.30902]
[1721719864063,1.58619708,66442.0,66441.0,0.30102]
[1721719864262,1.73315973,66442.0,66441.0,0.30202]
[1721719864487,1.58619708,66442.0,66441.0,0.30202]
[1721719864915,1.58619708,66442.0,66441.0,0.30102]
[1721719865128,1.58619708,66442.0,66441.0,0.30202]
[1721719865333,1.29918308,66442.0,66441.0,0.30202]
[1721719865505,1.29918308,66442.0,66441.0,0.36742]
[1721719865506,0.86625968,66442.0,66441.0,0.36742]
[1721719865707,0.56524568,66442.0,66441.0,0.51443991]
[1721719865909,0.26423168,66442.0,66441.0,0.51443991]
[1721719866089,0.25423168,66442.0,66441.0,0.51343991]
[1721719866317,0.104,66442.0,66441.0,0.51343991]
[1721719866561,0.104,66442.0,66441.0,0.53643991]
[1721719866756,0.104,66442.0,66441.0,0.14701991]
[1721719867166,0.07442942,66445.0,66441.0,0.14701991]
[1721719867367,0.00094,66445.0,66442.0,0.44802991]
[1721719867884,0.151441,66445.0,66442.0,0.44802991]
[1721719868085,0.22399142,66444.0,66442.0,0.44802991]
[1721719868438,0.07348942,66444.0,66443.0,0.04500299]
[1721719868611,0.07348942,66444.0,66443.0,0.4930329]
[1721719869275,0.07348942,66444.0,66443.0,0.44802991]
[1721719869902,0.08048942,66444.0,66443.0,0.58732991]
[1721719870118,0.08048942,66444.0,66443.0,0.59432991]
[1721719870418,0.007,66444.0,66443.0,0.59432991]
[1721719870744,0.007,66444.0,66443.0,0.61732991]
[1721719872574,0.00194,66445.0,66443.0,0.61732991]
[1721719872575,0.00194,66445.0,66443.0,0.55522991]
[1721719872856,0.00194,66445.0,66444.0,0.23391991]
[1721719873067,0.00094,66445.0,66444.0,0.53492991]
[1721719873908,0.15144,66445.0,66444.0,0.53492991]
[1721719874116,0.75344,66445.0,66444.0,0.51192991]
[1721719874517,0.45244,66445.0,66444.0,0.51192991]
[1721719875520,0.00094,66445.0,66444.0,0.51192991]
[1721719875647,0.00394,66445.0,66444.0,0.51192991]
[1721719875846,0.15444,66445.0,66444.0,0.52392991]
[1721719876143,0.00394,66445.0,66444.0,0.54692991]
[1721719876354,0.00394,66445.0,66444.0,0.6093429]
[1721719876789,0.00394,66445.0,66444.0,0.54692991]
[1721719876790,0.00094,66445.0,66444.0,0.54692991]
[1721719878597,0.07442942,66445.0,66444.0,0.54692991]
[1721719878974,0.07642942,66445.0,66444.0,0.54692991]
[1721719879404,0.52792942,66445.0,66444.0,0.54692991]
[1721719879573,0.82892942,66445.0,66444.0,0.54692991]
[1721719880043,1.12992942,66445.0,66444.0,0.52392991]
[1721719880790,1.61865724,66445.0,66444.0,0.31301]
[1721719881000,2.27015016,66445.0,66444.0,0.31301]
[1721719881206,2.53754085,66445.0,66444.0,0.31301]
[1721719881459,2.71817007,66445.0,66444.0,0.31301]
[1721719881658,2.95590467,66445.0,66444.0,0.31301]
[1721719882039,3.04475213,66445.0,66444.0,0.31301]
[1721719882416,2.972532,66445.0,66444.0,0.31301]
[1721719882628,2.972532,66445.0,66444.0,0.30101]
[1721719882834,2.91272905,66445.0,66444.0,0.30101]
[1721719883071,2.98036792,66445.0,66444.0,0.30201]
[1721719883281,2.99436792,66445.0,66444.0,0.30301]
[1721719883533,2.99337514,66445.0,66444.0,0.30201]
[1721719883758,2.98037514,66445.0,66444.0,0.30201]
[1721719884222,2.92672905,66445.0,66444.0,0.30201]
[1721719884430,2.92672905,66445.0,66444.0,0.30301]
[1721719884431,2.80598544,66445.0,66444.0,0.30301]
[1721719884637,2.0925651,66445.0,66444.0,0.30301]
[1721719884856,2.04858942,66445.0,66444.0,0.30301]
[1721719885095,1.92744621,66445.0,66444.0,0.30301]
[1721719885528,1.92744621,66445.0,66444.0,0.30201]
[1721719885529,1.91344621,66445.0,66444.0,0.30201]
[1721719885737,1.85894621,66445.0,66444.0,0.30201]
[1721719886148,1.87294621,66445.0,66444.0,0.30301]
[1721719886363,1.85894621,66445.0,66444.0,0.30201]
[1721719886585,1.79544621,66445.0,66444.0,0.30301]
[1721719886800,1.25844623,66445.0,66444.0,0.30401]
[1721719887016,1.24444623,66445.0,66444.0,0.30301]
[1721719887228,1.23044623,66445.0,66444.0,0.30201]
[1721719887437,1.25756529,66445.0,66444.0,0.30201]
[1721719888081,1.30756529,66445.0,66444.0,0.30201]
[1721719888319,1.40756529,66445.0,66444.0,0.30201]
[1721719888661,1.05656529,66445.0,66444.0,0.30201]
[1721719889355,1.35756529,66445.0,66444.0,0.30201]
[1721719889568,1.05656529,66445.0,66444.0,0.30201]
[1721719889790,1.35756529,66445.0,66444.0,0.30201]
[1721719890505,1.80814047,66445.0,66444.0,0.30201]
[1721719891626,1.45714049,66445.0,66444.0,0.30201]
[1721719891836,1.50714047,66445.0,66444.0,0.30201]
[1721719892228,1.45714049,66445.0,66444.0,0.30201]
[1721719892465,1.50714047,66445.0,66444.0,0.30201]
[1721719892679,1.45714049,66445.0,66444.0,0.30201]
[1721719893114,1.50714047,66445.0,66444.0,0.30201]
[1721719893538,1.50730659,66445.0,66444.0,0.30201]
[1721719893755,1.45730661,66445.0,66444.0,0.30201]
[1721719893962,1.45722307,66445.0,66444.0,0.30201]
[1721719894831,1.35722307,66445.0,66444.0,0.30201]
[1721719895066,1.35722307,66445.0,66444.0,0.36241]
[1721719895505,0.98273365,66445.0,66444.0,0.50942991]
[1721719895722,0.58173365,66445.0,66444.0,0.50942991]
[1721719895931,0.88249269,66445.0,66444.0,0.50942991]
[1721719896371,0.79444,66445.0,66444.0,0.50942991]
[1721719896591,0.78044,66445.0,66444.0,0.50942991]
[1721719896861,0.75344,66445.0,66444.0,0.50842991]
[1721719897059,0.47044,66445.0,66444.0,0.50942991]
[1721719897270,0.01894,66445.0,66444.0,0.50942991]
[1721719897474,0.00494,66445.0,66444.0,0.5901653]
[1721719897887,0.00994,66445.0,66444.0,0.53242991]
[1721719898149,0.16144,66445.0,66444.0,0.53842991]
[1721719898364,0.45344,66445.0,66444.0,0.53742991]
[1721719899037,0.15244,66445.0,66444.0,0.53742991]
[1721719899248,0.45344,66445.0,66444.0,0.53742991]
[1721719899674,0.15144,66445.0,66444.0,0.53142991]
[1721719899895,0.00794,66445.0,66444.0,0.7544673]
[1721719900137,0.00794,66445.0,66444.0,0.5939653]
[1721719900319,0.00194,66445.0,66444.0,0.5929653]
[1721719900517,0.00194,66445.0,66444.0,0.6069653]
[1721719900742,0.00394,66445.0,66444.0,0.6069653]
[1721719900942,0.00194,66445.0,66444.0,0.53142991]
[1721719901146,0.00094,66445.0,66444.0,0.68193191]
[1721719901352,0.00194,66445.0,66444.0,0.99693691]
[1721719901550,0.00194,66445.0,66444.0,1.126353]
[1721719901989,0.00194,66445.0,66444.0,1.201953]
[1721719902196,0.00194,66445.0,66444.0,1.502958]
[1721719902960,0.00194,66445.0,66444.0,0.900948]
[1721719903172,0.00194,66445.0,66444.0,0.59802991]
[1721719903173,0.15244,66445.0,66444.0,0.59802991]
[1721719903769,0.75444,66445.0,66444.0,0.59802991]
[1721719903994,0.75444,66445.0,66444.0,0.52242991]
[1721719904216,1.05544,66445.0,66444.0,0.46202991]
[1721719905003,0.75444,66445.0,66444.0,0.46202991]
[1721719905212,0.45344,66445.0,66444.0,0.46202991]
[1721719906076,0.45344,66445.0,66444.0,0.48502991]
[1721719906593,0.00194,66445.0,66444.0,0.48502991]
[1721719906800,0.00194,66445.0,66444.0,0.55122991]
[1721719909155,0.00194,66445.0,66444.0,0.63212991]
[1721719910291,0.15244,66445.0,66444.0,0.63212991]
[1721719910567,0.75444,66445.0,66444.0,0.55122991]
[1721719912358,0.94983998,66445.0,66444.0,0.31501]
[1721719912564,2.16404582,66445.0,66444.0,0.31501]
[1721719912790,2.26404582,66445.0,66444.0,0.31501]
[1721719912998,2.38248226,66445.0,66444.0,0.31501]
[1721719913630,2.38148226,66445.0,66444.0,0.30101]
[1721719913849,2.09448226,66445.0,66444.0,0.30301]
[1721719914057,2.09748226,66445.0,66444.0,0.30301]
[1721719914373,2.5509153,66445.0,66444.0,0.30201]
[1721719914571,2.5539153,66445.0,66444.0,0.30301]
[1721719914793,2.5509153,66445.0,66444.0,0.30301]
[1721719915227,2.27722834,66445.0,66444.0,0.30401]
[1721719915392,1.96222834,66445.0,66444.0,0.30301]
[1721719915594,1.85713344,66445.0,66444.0,0.30401]
[1721719917136,1.99135716,66445.0,66444.0,0.30401]
[1721719917357,1.9050637,66445.0,66444.0,0.30401]
[1721719917562,1.99140555,66445.0,66444.0,0.30401]
[1721719917911,1.9916458,66445.0,66444.0,0.30401]
[1721719918912,1.15602414,66445.0,66444.0,0.3345034]
[1721719919099,0.85502414,66445.0,66444.0,0.3575034]
[1721719919302,0.85502414,66445.0,66444.0,0.32701]
[1721719919682,0.76844,66445.0,66444.0,0.47402991]
[1721719919874,0.75444,66445.0,66444.0,0.47302991]
[1721719920083,0.81557417,66445.0,66444.0,0.47102991]
[1721719920382,0.76644,66445.0,66444.0,0.47302991]
[1721719920590,1.11744,66445.0,66444.0,0.30201]
[1721719920792,1.849677,66445.0,66444.0,0.30201]
[1721719921023,1.853677,66445.0,66444.0,0.30301]
[1721719921214,1.9723062,66445.0,66444.0,0.30301]
[1721719921425,1.853677,66445.0,66444.0,0.30301]
[1721719921631,1.839677,66445.0,66444.0,0.30201]
[1721719921951,1.853677,66445.0,66444.0,0.30301]
[1721719922669,1.97443769,66445.0,66444.0,0.30201]
[1721719922867,1.85419916,66445.0,66444.0,0.30301]
[1721719923277,1.98816236,66445.0,66444.0,0.30301]
[1721719923417,1.83992383,66445.0,66444.0,0.30201]
[1721719923622,1.83192383,66445.0,66444.0,0.30101]
[1721719923853,1.96616236,66445.0,66444.0,0.30101]
[1721719924050,1.97716236,66445.0,66444.0,0.30201]
[1721719924300,1.97716236,66445.0,66444.0,0.30101]
[1721719924301,1.96616236,66445.0,66444.0,0.30101]
[1721719924452,1.83192383,66445.0,66444.0,0.30101]
[1721719924649,1.83192383,66445.0,66444.0,0.30201]
[1721719924650,1.83892383,66445.0,66444.0,0.30201]
[1721719925735,1.83892383,66445.0,66444.0,0.30301]
[1721719925932,1.85292383,66445.0,66444.0,0.30301]
[1721719926355,1.83892383,66445.0,66444.0,0.30201]
[1721719927578,1.97317595,66445.0,66444.0,0.30201]
[1721719927792,1.83892383,66445.0,66444.0,0.30201]
[1721719927993,1.97315473,66445.0,66444.0,0.30201]
[1721719928158,1.83892383,66445.0,66444.0,0.30201]
[1721719928725,1.76656465,66445.0,66444.0,0.30301]
[1721719928917,1.98321356,66445.0,66444.0,0.30301]
[1721719929116,1.91981356,66445.0,66444.0,0.30270708]
[1721719929276,1.91983374,66445.0,66444.0,0.30270708]
[1721719929478,1.46883365,66445.0,66444.0,0.30270708]
[1721719929728,1.38456397,66445.0,66444.0,0.30270708]
[1721719929965,1.43456397,66445.0,66444.0,0.30270708]
[1721719930154,1.38456397,66445.0,66444.0,0.30601802]
[1721719930547,1.23456397,66445.0,66444.0,0.30601802]
[1721719930850,1.12016467,66445.0,66444.0,0.30601802]
[1721719932293,1.20291267,66445.0,66444.0,0.30601802]
[1721719932512,1.15291267,66445.0,66444.0,0.30601802]
[1721719932722,1.20291267,66445.0,66444.0,0.30601802]
[1721719932937,0.13285137,66445.0,66444.0,0.47603793]
[1721719933141,0.021,66445.0,66444.0,0.53873793]
[1721719933822,0.007,66445.0,66444.0,0.53773793]
[1721719934037,0.04474736,66449.0,66444.0,0.79443772]
[1721719934254,0.04474736,66451.0,66445.0,0.17001991]
[1721719934437,0.1118684,66457.0,66456.0,0.451426]
[1721719934653,0.002794,66472.0,66457.0,0.300946]
[1721719934790,0.150453,66466.0,66459.0,0.14701991]
[1721719935133,0.04475451,66467.0,66459.0,0.14701991]
[1721719935134,0.04475451,66467.0,66461.0,0.0609]
[1721719935341,0.04475451,66468.0,66462.0,0.44823991]
[1721719935572,0.04475451,66471.0,66463.0,0.023]
[1721719935717,0.19519651,66471.0,66464.0,0.44822991]
[1721719935924,0.04475451,66471.0,66465.0,0.023]
[1721719936132,0.04475451,66473.0,66467.0,0.1422]
[1721719936341,0.00084,66474.0,66467.0,0.1422]
[1721719936342,0.04559451,66474.0,66471.0,0.14701991]
[1721719936530,0.00084,66474.0,66472.0,0.30118]
[1721719936726,0.00084,66474.0,66473.0,0.21151991]
[1721719936919,0.00084,66474.0,66473.0,0.53568991]
[1721719937957,0.00684,66474.0,66473.0,0.53668991]
[1721719938153,0.00684,66474.0,66473.0,0.8576058]
[1721719938634,0.00784,66474.0,66473.0,0.8686058]
[1721719938805,0.00684,66474.0,66473.0,1.4593538]
[1721719939598,0.00784,66474.0,66473.0,1.5733538]
[1721719939978,0.00784,66474.0,66473.0,1.8742278]
[1721719940184,0.44093655,66494.0,66488.0,0.0827]
[1721719940343,0.44093655,66494.0,66491.0,0.14701991]
[1721719940571,0.07348942,66500.0,66491.0,0.14701991]
[1721719940572,0.07348942,66500.0,66492.0,0.30109]
[1721719940717,0.07348942,66500.0,66492.0,0.32409]
[1721719940932,0.07348942,66500.0,66493.0,0.041506]
[1721719940933,0.451168,66494.0,66493.0,0.041506]
[1721719941143,0.07348942,66500.0,66493.0,0.365586]
[1721719941144,0.152379,66499.0,66493.0,0.365586]
[1721719941366,0.002,66499.0,66494.0,0.023]
[1721719941560,0.451161,66495.0,66494.0,0.023]
[1721719941786,0.002,66499.0,66495.0,0.30077]
[1721719941787,0.751922,66496.0,66495.0,0.30077]
[1721719941964,0.751922,66496.0,66495.0,0.47078991]
[1721719943574,0.002,66499.0,66495.0,0.47078991]
[1721719943790,0.152378,66499.0,66496.0,0.23321991]
[1721719944014,0.152378,66499.0,66497.0,0.5044889]
[1721719944015,0.002,66499.0,66497.0,0.5044889]
[1721719944238,0.002,66499.0,66498.0,0.023]
[1721719944447,0.002,66499.0,66498.0,0.55097991]
[1721719944869,0.002,66499.0,66498.0,0.70135991]
[1721719945078,0.002,66499.0,66498.0,0.6575129]
[1721719945303,0.504134,66499.0,66498.0,0.44777991]
[1721719945517,1.220046,66499.0,66498.0,0.30076]
[1721719945934,1.221046,66499.0,66498.0,0.31476]
[1721719946167,1.521802,66499.0,66498.0,0.31476]
[1721719946415,1.58180198,66499.0,66498.0,0.31476]
[1721719946624,1.80746463,66499.0,66498.0,0.31476]
[1721719946832,1.65050198,66499.0,66498.0,0.31476]
[1721719947047,1.65950198,66499.0,66498.0,0.31576]
[1721719947724,1.65050198,66499.0,66498.0,0.31476]
[1721719947935,1.66350198,66499.0,66498.0,0.30176]
[1721719948151,1.66350198,66499.0,66498.0,0.30776]
[1721719948372,1.96525798,66499.0,66498.0,0.30776]
[1721719948588,2.06525798,66499.0,66498.0,0.30176]
[1721719948831,2.06925798,66499.0,66498.0,0.30176]
[1721719949283,2.06425798,66499.0,66498.0,0.30176]
[1721719949690,2.06825798,66499.0,66498.0,0.30176]
[1721719949899,2.05425798,66499.0,66498.0,0.30076]
[1721719950366,2.06825798,66499.0,66498.0,0.30076]
[1721719950797,2.05425798,66499.0,66498.0,0.30076]
[1721719951007,2.06825798,66499.0,66498.0,0.30076]
[1721719951439,2.1517077,66499.0,66498.0,0.30076]
[1721719951640,1.76350198,66499.0,66498.0,0.30076]
[1721719951841,1.77350198,66499.0,66498.0,0.30176]
[1721719952179,1.77350198,66499.0,66498.0,0.30076]
[1721719952180,1.76350198,66499.0,66498.0,0.30076]
[1721719952387,1.76350198,66499.0,66498.0,0.30176]
[1721719952388,1.75950198,66499.0,66498.0,0.30176]
[1721719952630,1.77350198,66499.0,66498.0,0.30176]
[1721719952857,1.77350198,66499.0,66498.0,0.30076]
[1721719953202,1.75950198,66499.0,66498.0,0.30076]
[1721719953598,1.77350198,66499.0,66498.0,0.30076]
[1721719954067,1.75950198,66499.0,66498.0,0.30076]
[1721719954264,1.76750198,66499.0,66498.0,0.30176]
[1721719954468,1.77150198,66499.0,66498.0,0.30076]
[1721719954813,1.78150198,66499.0,66498.0,0.30176]
[1721719955020,1.265346,66499.0,66498.0,0.30176]
[1721719955230,1.186646,66499.0,66498.0,0.331936]
[1721719955429,1.186646,66499.0,66498.0,0.30176]
[1721719955626,1.068646,66499.0,66498.0,0.44777991]
[1721719955838,1.068646,66499.0,66498.0,0.47077991]
[1721719956036,1.054646,66499.0,66498.0,0.47077991]
[1721719956443,1.062646,66499.0,66498.0,0.47177991]
[1721719956649,1.076646,66499.0,66498.0,0.47177991]
[1721719957050,1.062646,66499.0,66498.0,0.5189579]
[1721719957248,0.75389,66499.0,66498.0,0.47077991]
[1721719957455,0.453134,66499.0,66498.0,0.47077991]
[1721719957811,0.77489,66499.0,66498.0,0.53627991]
[1721719958014,0.77489,66499.0,66498.0,0.5977779]
[1721719958217,0.460134,66499.0,66498.0,0.5977779]
[1721719958416,0.460134,66499.0,66498.0,0.5967779]
[1721719958643,0.453134,66499.0,66498.0,0.5967779]
[1721719958847,0.454134,66499.0,66498.0,0.6037779]
[1721719959761,0.468134,66499.0,66498.0,0.6037779]
[1721719960161,0.454134,66499.0,66498.0,0.6037779]
[1721719960559,0.461134,66499.0,66498.0,0.6127779]
[1721719960777,0.459134,66499.0,66498.0,0.5967779]
[1721719960987,0.453134,66499.0,66498.0,0.5967779]
[1721719961403,0.006,66499.0,66498.0,0.5967779]
[1721719962838,0.002,66499.0,66498.0,0.5967779]
[1721719963049,0.002,66499.0,66498.0,0.7471579]
[1721719963362,0.002,66499.0,66498.0,0.5967779]
[1721719964130,0.453134,66499.0,66498.0,0.53527991]
[1721719964692,0.153378,66499.0,66498.0,0.54927991]
[1721719965530,0.003,66499.0,66498.0,0.54962891]
[1721719966101,0.003,66499.0,66498.0,0.6196309]
[1721719966314,0.004,66499.0,66498.0,0.6196309]
[1721719966985,0.455134,66499.0,66498.0,0.6196309]
[1721719967271,0.455134,66499.0,66498.0,0.54962891]
[1721719967790,0.154378,66499.0,66498.0,0.54962891]
[1721719967934,0.004,66499.0,66498.0,0.54962891]
[1721719968569,0.154378,66499.0,66498.0,0.54962891]
[1721719968967,0.004,66499.0,66498.0,0.54962891]
[1721719969172,0.004,66499.0,66498.0,0.6045918]
[1721719970080,0.154378,66499.0,66498.0,0.6045918]
[1721719972677,0.004,66499.0,66498.0,0.6045918]
[1721719975334,0.004,66499.0,66498.0,1.4385918]
[1721719975531,0.004,66499.0,66498.0,1.5385918]
[1721719975937,0.004,66499.0,66498.0,1.8393518]
[1721719976369,0.00848,66509.0,66504.0,1.116532]
[1721719976573,0.00848,66509.0,66504.0,2.73201491]
[1721719977316,0.00848,66509.0,66504.0,3.12322791]
[1721719977636,0.00948,66505.0,66504.0,3.12322791]
[1721719977839,0.00948,66505.0,66504.0,3.22810742]
[1721719978068,0.00948,66505.0,66504.0,3.37507007]
[1721719978543,0.00948,66505.0,66504.0,3.39807007]
[1721719978771,0.00948,66505.0,66504.0,3.41207007]
[1721719979102,0.00848,66505.0,66504.0,3.39807007]
[1721719979300,0.00848,66509.0,66507.0,1.05252]
[1721719979506,0.00848,66509.0,66507.0,1.76175991]
[1721719979708,0.00848,66509.0,66507.0,2.79947991]
[1721719980109,0.00848,66509.0,66508.0,1.491717]
[1721719980317,0.00848,66509.0,66508.0,2.00078302]
[1721719980585,0.01048,66519.0,66518.0,0.751675]
[1721719980753,0.01048,66519.0,66518.0,3.09040746]
[1721719980999,0.01048,66519.0,66518.0,3.16489182]
[1721719981236,0.01048,66519.0,66518.0,3.46556182]
[1721719981467,0.01048,66519.0,66518.0,3.31185447]
[1721719981695,0.01048,66519.0,66518.0,3.01118447]
[1721719981905,0.01048,66519.0,66518.0,3.29652836]
[1721719982118,0.01048,66519.0,66518.0,3.31052836]
[1721719982306,0.01048,66519.0,66518.0,3.35802087]
[1721719982572,0.01048,66519.0,66518.0,3.65869087]
[1721719983674,0.00848,66534.0,66521.0,1.290676]
[1721719983908,0.00848,66534.0,66521.0,2.82383436]
[1721719984055,0.00848,66534.0,66521.0,3.12449036]
[1721719984266,0.002,66539.0,66528.0,0.5]
[1721719984465,0.002,66539.0,66538.0,1.34694991]
[1721719984664,0.002,66539.0,66538.0,1.82667955]
[1721719985548,0.002,66539.0,66538.0,1.84067955]
[1721719985751,0.002,66539.0,66538.0,1.86367955]
[1721719986156,0.00084,66552.0,66551.0,0.751302]
[1721719986357,0.00084,66552.0,66551.0,1.74676291]
[1721719986581,0.00084,66552.0,66551.0,1.85303336]
[1721719986908,0.00084,66552.0,66551.0,1.55251236]
[1721719987053,0.00084,66552.0,66551.0,1.16872091]
[1721719987255,0.08144,66552.0,66551.0,0.63405759]
[1721719987456,0.08144,66552.0,66551.0,0.59450256]
[1721719987778,0.00184,66552.0,66551.0,0.77276256]
[1721719988033,0.00184,66552.0,66551.0,1.11283859]
[1721719988219,0.00184,66552.0,66551.0,1.20029989]
[1721719988370,0.00184,66552.0,66551.0,1.51482089]
[1721719988575,0.00184,66552.0,66551.0,1.53782089]
[1721719989160,0.00184,66552.0,66551.0,1.82842556]
[1721719989278,0.00084,66552.0,66551.0,1.99164189]
[1721719989890,0.00084,66552.0,66551.0,2.36014189]
[1721719990166,0.00848,66566.0,66562.0,1.191548]